fUST/lending_fUST_20250217
["ID","MTS","AMOUNT","RATE_DAILY","PERIOD"]
[353378773,1739807444147,-500.0,0.00010958,2]
[353378775,1739807444156,-500.0,0.00010958,2]
[353378777,1739807444166,-500.0,0.00010958,2]
[353378779,1739807444175,-500.0,0.00010958,2]
[353378781,1739807444185,-500.0,0.00010958,2]
[353378783,1739807444194,-599.09462235,0.00010958,2]
[353378785,1739807444203,-500.0,0.00010958,2]
[353378787,1739807444213,-500.0,0.00010958,2]
[353378789,1739807444222,-500.0,0.00010958,2]
[353378791,1739807444233,-500.0,0.00010958,2]
[353378793,1739807444243,-502.55811231,0.00010958,2]
[353378795,1739807444252,-500.0,0.00010958,2]
[353378797,1739807444262,-500.0,0.00010958,2]
[353378799,1739807444271,-500.0,0.00010958,2]
[353378801,1739807444281,-500.0,0.00010958,2]
[353378803,1739807444291,-500.0,0.00010958,2]
[353378805,1739807444301,-501.40384259,0.00010958,2]
[353378807,1739807444311,-500.0,0.00010958,2]
[353378809,1739807444320,-500.0,0.00010958,2]
[353378811,1739807444329,-500.52163272,0.00010958,2]
[353378813,1739807444339,-501.64911632,0.00010958,2]
[353378815,1739807444349,-500.0,0.00010958,2]
[353378817,1739807444358,-500.0,0.00010958,2]
[353378819,1739807444368,-500.0,0.00010958,2]
[353378821,1739807444377,-151.0,0.00010959,2]
[353378823,1739807444387,-151.0,0.00010959,2]
[353378825,1739807444396,-151.0,0.00010959,2]
[353378827,1739807444406,-151.0,0.00010959,2]
[353378829,1739807444415,-151.0,0.00010959,2]
[353378831,1739807444425,-151.0,0.00010959,2]
[353378833,1739807444434,-151.0,0.00010959,2]
[353378835,1739807444443,-151.0,0.00010959,2]
[353378837,1739807444453,-151.0,0.00010959,2]
[353378839,1739807444463,-151.0,0.00010959,2]
[353378841,1739807444472,-151.0,0.00010959,2]
[353378843,1739807444482,-151.0,0.00010959,2]
[353378845,1739807444492,-151.0,0.00010959,2]
[353378847,1739807444502,-151.0,0.00010959,2]
[353378849,1739807444511,-151.0,0.00010959,2]
[353378851,1739807444521,-473.379147,0.00010959,2]
[353378853,1739807444531,-473.379147,0.00010959,2]
[353378855,1739807444541,-473.379147,0.00010959,2]
[353378857,1739807444551,-473.379147,0.00010959,2]
[353378859,1739807444560,-722.6425565,0.00011002,2]
[353378861,1739807444570,-4307.98,0.00011039,2]
[353378863,1739807444580,-500.0,0.0001104,2]
[353378865,1739807444590,-500.0,0.0001104,2]
[353378867,1739807444599,-500.0,0.0001104,2]
[353378869,1739807444609,-500.0,0.0001104,2]
[353378871,1739807444620,-151.0,0.0001104,2]
[353378873,1739807444629,-151.0,0.0001104,2]
[353378875,1739807444639,-500.0,0.0001104,2]
[353378877,1739807444648,-500.0,0.0001104,2]
[353378879,1739807444658,-4307.98,0.0001104,2]
[353378881,1739807444667,-4307.98,0.0001104,2]
[353378883,1739807444677,-4307.98,0.0001104,2]
[353378885,1739807444686,-1723.80742927,0.0001104,2]
[353378904,1739807444864,-2584.17257073,0.0001104,2]
[353378907,1739807444875,-151.0,0.0001104,2]
[353378909,1739807444885,-151.0,0.0001104,2]
[353378911,1739807444896,-244.789525,0.0001104,2]
[353378913,1739807444906,-151.0,0.0001104,2]
[353378915,1739807444917,-151.0,0.0001104,2]
[353378917,1739807444928,-451.78503378,0.00011041,2]
[353378919,1739807444937,-501.57562474,0.00011041,2]
[353378921,1739807444947,-163.81263261,0.00011041,2]
[353378923,1739807444957,-218.53,0.00011041,2]
[353378925,1739807444967,-451.53,0.00011041,2]
[353378927,1739807444976,-246.74,0.00011041,2]
[353378929,1739807444985,-462.69,0.00011041,2]
[353378931,1739807444998,-253.57,0.00011041,2]
[353378933,1739807445007,-500.0,0.00011041,2]
[353378935,1739807445016,-500.0,0.00011041,2]
[353378937,1739807445025,-183.32,0.00011041,2]
[353378939,1739807445035,-505.56,0.00011041,2]
[353378941,1739807445045,-331.22,0.00011041,2]
[353378943,1739807445054,-156.53,0.00011041,2]
[353378945,1739807445064,-500.0,0.00011041,2]
[353378947,1739807445073,-500.0,0.00011041,2]
[353378949,1739807445083,-334.74,0.00011041,2]
[353378951,1739807445092,-500.0,0.00011041,2]
[353378953,1739807445102,-500.0,0.00011041,2]
[353378955,1739807445111,-500.0,0.00011041,2]
[353378957,1739807445120,-330.35,0.00011041,2]
[353378959,1739807445130,-151.0,0.00011041,2]
[353378961,1739807445139,-522.05191629,0.00011041,2]
[353378963,1739807445149,-500.0,0.00011041,2]
[353378965,1739807445159,-205.46,0.00011041,2]
[353378967,1739807445169,-500.0,0.00011041,2]
[353378969,1739807445178,-500.0,0.00011041,2]
[353378971,1739807445187,-501.66108807,0.00011041,2]
[353378973,1739807445197,-220.41,0.00011041,2]
[353378975,1739807445206,-500.0,0.00011041,2]
[353378977,1739807445216,-500.0,0.00011041,2]
[353378979,1739807445225,-500.0,0.00011041,2]
[353378982,1739807445234,-500.0,0.00011041,2]
[353378984,1739807445244,-500.0,0.00011041,2]
[353378986,1739807445254,-500.0,0.00011041,2]
[353378988,1739807445264,-500.0,0.00011041,2]
[353378990,1739807445273,-500.0,0.00011041,2]
[353378992,1739807445282,-571.02,0.00011041,2]
[353378994,1739807445295,-434.73,0.00011041,2]
[353378996,1739807445305,-500.0,0.00011041,2]
[353378998,1739807445314,-500.0,0.00011041,2]
[353379000,1739807445324,-333.67,0.00011041,2]
[353379002,1739807445334,-500.0,0.00011041,2]
[353379004,1739807445342,-413.7,0.00011041,2]
[353379006,1739807445351,-500.0,0.00011041,2]
[353379008,1739807445360,-500.0,0.00011041,2]
[353379010,1739807445370,-869.93,0.00011041,2]
[353379012,1739807445380,-223.09,0.00011041,2]
[353379014,1739807445390,-500.0,0.00011041,2]
[353379016,1739807445399,-500.0,0.00011041,2]
[353379018,1739807445408,-275.64,0.00011041,2]
[353379020,1739807445418,-306.01,0.00011041,2]
[353379022,1739807445427,-272.14,0.00011041,2]
[353379024,1739807445436,-500.0,0.00011041,2]
[353379026,1739807445446,-408.08,0.00011041,2]
[353379028,1739807445455,-500.0,0.00011041,2]
[353379030,1739807445464,-531.56,0.00011041,2]
[353379032,1739807445474,-500.0,0.00011041,2]
[353379034,1739807445484,-500.0,0.00011041,2]
[353379036,1739807445493,-585.21,0.00011041,2]
[353379038,1739807445503,-500.0,0.00011041,2]
[353379040,1739807445512,-194.61,0.00011041,2]
[353379042,1739807445521,-177.17,0.00011041,2]
[353379044,1739807445531,-956.92,0.00011041,2]
[353379046,1739807445543,-293.97,0.00011041,2]
[353379048,1739807445553,-500.0,0.00011041,2]
[353379050,1739807445562,-151.0,0.00011041,2]
[353379052,1739807445573,-500.0,0.00011041,2]
[353379054,1739807445582,-156.430794,0.00011041,2]
[353379056,1739807445592,-279.491224,0.00011041,2]
[353379058,1739807445602,-500.0,0.00011041,2]
[353379060,1739807445611,-500.0,0.00011041,2]
[353379062,1739807445620,-500.0,0.00011041,2]
[353379064,1739807445630,-500.0,0.00011041,2]
[353379066,1739807445639,-310.74,0.00011041,2]
[353379068,1739807445648,-500.0,0.00011041,2]
[353379070,1739807445657,-500.0,0.00011041,2]
[353379072,1739807445667,-500.0,0.00011041,2]
[353379074,1739807445676,-500.0,0.00011041,2]
[353379076,1739807445686,-500.0,0.00011041,2]
[353379078,1739807445695,-500.0,0.00011041,2]
[353379080,1739807445705,-151.0,0.00011041,2]
[353379082,1739807445714,-330.85,0.00011041,2]
[353379085,1739807445724,-2564.9,0.00011041,2]
[353379088,1739807445733,-500.0,0.00011041,2]
[353379091,1739807445742,-500.0,0.00011041,2]
[353379094,1739807445751,-500.0,0.00011041,2]
[353379096,1739807445761,-500.0,0.00011041,2]
[353379098,1739807445770,-500.0,0.00011041,2]
[353379100,1739807445779,-500.0,0.00011041,2]
[353379102,1739807445788,-473.379147,0.00011041,2]
[353379104,1739807445799,-500.0,0.00011041,2]
[353379106,1739807445808,-473.379147,0.00011041,2]
[353379109,1739807445817,-374.42,0.00011041,2]
[353379111,1739807445826,-463.34,0.00011041,2]
[353379112,1739807445835,-4307.98,0.00011087,2]
[353379115,1739807445844,-4307.98,0.00011087,2]
[353379117,1739807445854,-6623.30942738,0.00011088,2]
[353379119,1739807445864,-500.0,0.00011122,2]
[353379121,1739807445873,-500.0,0.00011122,2]
[353379123,1739807445883,-500.0,0.00011122,2]
[353379125,1739807445892,-500.0,0.00011122,2]
[353379127,1739807445902,-4307.98,0.00011122,2]
[353379130,1739807445919,-352.74,0.00011123,2]
[353379132,1739807445930,-150.46,0.00011123,2]
[353379134,1739807445939,-500.0,0.00011123,2]
[353379136,1739807445950,-502.85,0.00011123,2]
[353379138,1739807445959,-500.0,0.00011123,2]
[353379140,1739807445969,-417.76,0.00011123,2]
[353379142,1739807445978,-363.26,0.00011123,2]
[353379144,1739807445987,-185.815689,0.00011123,2]
[353379146,1739807445998,-185.815689,0.00011123,2]
[353379148,1739807446007,-500.0,0.00011123,2]
[353379150,1739807446016,-370.04,0.00011123,2]
[353379152,1739807446025,-151.0,0.00011123,2]
[353379154,1739807446035,-500.0,0.00011123,2]
[353379156,1739807446046,-288.31,0.00011123,2]
[353379158,1739807446056,-500.0,0.00011123,2]
[353379160,1739807446065,-500.0,0.00011123,2]
[353379162,1739807446076,-500.0,0.00011123,2]
[353379164,1739807446085,-500.0,0.00011123,2]
[353379166,1739807446094,-299.81,0.00011123,2]
[353379168,1739807446103,-500.0,0.00011123,2]
[353379170,1739807446113,-500.0,0.00011123,2]
[353379172,1739807446122,-869.93,0.00011123,2]
[353379174,1739807446141,-151.0,0.00011123,2]
[353379176,1739807446151,-500.0,0.00011123,2]
[353379177,1739807446160,-500.0,0.00011123,2]
[353379179,1739807446170,-500.0,0.00011123,2]
[353379181,1739807446180,-213.315852,0.00011123,2]
[353379183,1739807446189,-500.0,0.00011123,2]
[353379186,1739807446199,-151.0,0.00011123,2]
[353379188,1739807446209,-151.0,0.00011123,2]
[353379190,1739807446218,-500.0,0.00011123,2]
[353379192,1739807446227,-302.21,0.00011123,2]
[353379194,1739807446237,-151.0,0.00011123,2]
[353379196,1739807446247,-500.0,0.00011123,2]
[353379198,1739807446258,-956.92,0.00011123,2]
[353379200,1739807446268,-500.0,0.00011123,2]
[353379202,1739807446277,-151.0,0.00011123,2]
[353379204,1739807446287,-500.0,0.00011123,2]
[353379206,1739807446303,-500.0,0.00011123,2]
[353379208,1739807446312,-542.85,0.00011123,2]
[353379210,1739807446322,-500.0,0.00011123,2]
[353379212,1739807446332,-500.0,0.00011123,2]
[353379214,1739807446342,-522.72,0.00011123,2]
[353379217,1739807446352,-500.0,0.00011123,2]
[353379218,1739807446361,-500.0,0.00011123,2]
[353379220,1739807446371,-199.0,0.00011123,2]
[353379223,1739807446381,-304.49,0.00011123,2]
[353379224,1739807446390,-2564.9,0.00011123,2]
[353379226,1739807446400,-500.0,0.00011123,2]
[353379229,1739807446409,-500.0,0.00011123,2]
[353379231,1739807446419,-500.0,0.00011123,2]
[353379233,1739807446429,-500.0,0.00011123,2]
[353379235,1739807446438,-500.0,0.00011123,2]
[353379237,1739807446447,-500.0,0.00011123,2]
[353379239,1739807446457,-500.0,0.00011123,2]
[353379241,1739807446467,-722.6425565,0.00011146,2]
[353379243,1739807446476,-500.0,0.00011204,2]
[353379245,1739807446486,-500.0,0.00011204,2]
[353379247,1739807446496,-500.0,0.00011204,2]
[353379249,1739807446505,-4307.98,0.00011204,2]
[353379251,1739807446515,-4307.98,0.00011204,2]
[353379253,1739807446524,-873.59851381,0.00011204,2]
[353379274,1739807446712,-3434.38148619,0.00011204,2]
[353379276,1739807446722,-4307.98,0.00011204,2]
[353379279,1739807446731,-4308.03324538,0.00011204,2]
[353379281,1739807446741,-151.0,0.00011204,2]
[353379283,1739807446750,-473.379147,0.00011204,2]
[353379285,1739807446760,-473.379147,0.00011204,2]
[353379287,1739807446769,-500.0,0.00011205,2]
[353379289,1739807446779,-500.0,0.00011205,2]
[353379291,1739807446788,-151.0,0.00011205,2]
[353379293,1739807446800,-500.0,0.00011205,2]
[353379295,1739807446809,-500.0,0.00011205,2]
[353379297,1739807446819,-500.0,0.00011205,2]
[353379299,1739807446828,-500.0,0.00011205,2]
[353379301,1739807446837,-427.34564089,0.00011205,2]
[353379302,1739807446849,-23.01435911,0.00011205,2]
[353379303,1739807446859,-500.0,0.00011205,2]
[353379304,1739807446867,-190.54394064,0.00011205,2]
[353379305,1739807446879,-167.44605936,0.00011205,2]
[353379306,1739807446888,-500.0,0.00011205,2]
[353379307,1739807446897,-869.93,0.00011205,2]
[353379308,1739807446907,-500.0,0.00011205,2]
[353379309,1739807446919,-557.28,0.00011205,2]
[353379310,1739807446928,-314.58,0.00011205,2]
[353379311,1739807446938,-440.53,0.00011205,2]
[353379312,1739807446947,-166.55,0.00011205,2]
[353379313,1739807446956,-500.0,0.00011205,2]
[353379314,1739807446965,-611.39348203,0.00011205,2]
[353379315,1739807446989,-345.52651797,0.00011205,2]
[353379316,1739807447000,-500.0,0.00011205,2]
[353379317,1739807447009,-500.0,0.00011205,2]
[353379318,1739807447020,-500.0,0.00011205,2]
[353379319,1739807447029,-339.62062205,0.00011205,2]
[353379321,1739807447041,-160.37937795,0.00011205,2]
[353379323,1739807447052,-461.07,0.00011205,2]
[353379325,1739807447061,-126.61701943,0.00011205,2]
[353379327,1739807447073,-373.38298057,0.00011205,2]
[353379329,1739807447082,-500.0,0.00011205,2]
[353379331,1739807447091,-2564.9,0.00011205,2]
[353379333,1739807447101,-500.0,0.00011205,2]
[353379335,1739807447111,-500.0,0.00011205,2]
[353379337,1739807447121,-500.0,0.00011205,2]
[353379339,1739807447130,-500.0,0.00011205,2]
[353379341,1739807447144,-500.0,0.00011205,2]
[353379343,1739807447154,-500.0,0.00011205,2]
[353379345,1739807447164,-469.14,0.00011205,2]
[353379347,1739807447175,-359.81,0.00011287,2]
[353379349,1739807447185,-450.43,0.00011287,2]
[353379351,1739807447195,-185.815689,0.00011287,2]
[353379353,1739807447209,-185.815689,0.00011287,2]
[353379355,1739807447220,-198.81,0.00011287,2]
[353379357,1739807447229,-500.0,0.00011287,2]
[353379359,1739807447239,-500.0,0.00011287,2]
[353379361,1739807447249,-280.09,0.00011287,2]
[353379363,1739807447260,-500.0,0.00011287,2]
[353379365,1739807447269,-500.0,0.00011287,2]
[353379367,1739807447279,-869.93,0.00011287,2]
[353379369,1739807447288,-500.0,0.00011287,2]
[353379371,1739807447299,-500.0,0.00011287,2]
[353379373,1739807447309,-956.92,0.00011287,2]
[353379375,1739807447318,-500.0,0.00011287,2]
[353379377,1739807447328,-500.0,0.00011287,2]
[353379379,1739807447337,-500.0,0.00011287,2]
[353379381,1739807447347,-597.14514554,0.00011287,2]
[353379383,1739807447356,-500.0,0.00011287,2]
[353379385,1739807447365,-500.0,0.00011287,2]
[353379387,1739807447375,-2564.9,0.00011287,2]
[353379389,1739807447384,-220.96,0.00011287,2]
[353379391,1739807447397,-365.46,0.00011287,2]
[353379393,1739807447407,-500.0,0.00011287,2]
[353379395,1739807447417,-500.0,0.00011287,2]
[353379397,1739807447426,-500.0,0.00011287,2]
[353379399,1739807447435,-500.0,0.00011287,2]
[353379401,1739807447444,-722.6425565,0.00011289,2]
[353379403,1739807447454,-500.0,0.00011368,2]
[353379406,1739807447464,-500.0,0.00011368,2]
[353379407,1739807447473,-500.0,0.00011368,2]
[353379410,1739807447485,-500.0,0.00011368,2]
[353379412,1739807447496,-500.0,0.00011369,2]
[353379414,1739807447505,-500.0,0.00011369,2]
[353379416,1739807447515,-377.23,0.00011369,2]
[353379418,1739807447525,-184.21,0.00011369,2]
[353379420,1739807447534,-869.93,0.00011369,2]
[353379421,1739807447546,-500.0,0.00011369,2]
[353379424,1739807447556,-500.0,0.00011369,2]
[353379425,1739807447565,-956.92,0.00011369,2]
[353379428,1739807447575,-500.0,0.00011369,2]
[353379430,1739807447584,-500.0,0.00011369,2]
[353379432,1739807447594,-202.77,0.00011369,2]
[353379434,1739807447603,-500.0,0.00011369,2]
[353379436,1739807447614,-54.36960647,0.00011369,2]
[353379439,1739807447639,-445.63039353,0.00011369,2]
[353379441,1739807447649,-1554.36960647,0.00011369,2]
[353379443,1739807447660,-1010.53039353,0.00011369,2]
[353379445,1739807447669,-575.11,0.00011369,2]
[353379447,1739807447679,-500.0,0.00011369,2]
[353379449,1739807447688,-288.47,0.00011369,2]
[353379451,1739807447698,-500.0,0.00011369,2]
[353379453,1739807447707,-722.6425565,0.00011433,2]
[353379455,1739807447717,-151.0,0.00011433,2]
[353379457,1739807447727,-500.0,0.00011451,2]
[353379459,1739807447736,-500.0,0.00011451,2]
[353379461,1739807447745,-500.0,0.00011451,2]
[353379463,1739807447755,-151.0,0.00011452,2]
[353379465,1739807447764,-499.00000089,0.00011452,2]
[353379467,1739807447774,-500.0,0.00011452,2]
[353379469,1739807447784,-869.93,0.00011452,2]
[353379471,1739807447795,-151.0,0.00011452,2]
[353379473,1739807447804,-500.0,0.00011452,2]
[353379475,1739807447814,-151.0,0.00011452,2]
[353379477,1739807447823,-151.0,0.00011452,2]
[353379479,1739807447834,-172.454588,0.00011452,2]
[353379481,1739807447844,-500.0,0.00011452,2]
[353379483,1739807447854,-956.92,0.00011452,2]
[353379485,1739807447863,-64.23229467,0.00011452,2]
[353379487,1739807447875,-274.75360894,0.00011452,2]
[353379489,1739807447885,-500.0,0.00011452,2]
[353379491,1739807447895,-355.36,0.00011452,2]
[353379493,1739807447905,-500.0,0.00011452,2]
[353379495,1739807447919,-2108.24467006,0.00011452,2]
[353379498,1739807447931,-456.65532994,0.00011452,2]
[353379500,1739807447941,-500.0,0.00011452,2]
[353379502,1739807447952,-500.0,0.00011452,2]
[353379504,1739807447962,-473.379147,0.00011452,2]
[353379506,1739807447971,-473.379147,0.00011452,2]
[353379508,1739807447981,-500.0,0.00011533,2]
[353379510,1739807447991,-500.0,0.00011533,2]
[353379512,1739807448001,-500.0,0.00011533,2]
[353379514,1739807448011,-500.0,0.00011534,2]
[353379516,1739807448020,-869.93,0.00011534,2]
[353379518,1739807448030,-500.0,0.00011534,2]
[353379520,1739807448040,-500.0,0.00011534,2]
[353379522,1739807448053,-956.92,0.00011534,2]
[353379524,1739807448063,-527.44666647,0.00011534,2]
[353379526,1739807448073,-500.0,0.00011534,2]
[353379528,1739807448083,-2564.9,0.00011534,2]
[353379530,1739807448093,-500.0,0.00011534,2]
[353379532,1739807448103,-203.0,0.00011534,2]
[353379534,1739807448114,-444.93,0.00011616,2]
[353379536,1739807448133,-869.93,0.00011616,2]
[353379538,1739807448143,-206.01,0.00011616,2]
[353379539,1739807448154,-500.0,0.00011616,2]
[353379542,1739807448165,-956.92,0.00011616,2]
[353379544,1739807448174,-500.0,0.00011616,2]
[353379546,1739807448184,-2564.9,0.00011616,2]
[353379548,1739807448194,-500.0,0.00011616,2]
[353379550,1739807448204,-869.93,0.00011698,2]
[353379552,1739807448214,-389.22,0.00011698,2]
[353379554,1739807448224,-956.92,0.00011698,2]
[353379556,1739807448235,-500.0,0.00011698,2]
[353379558,1739807448245,-2564.9,0.00011698,2]
[353379560,1739807448255,-500.0,0.00011698,2]
[353379562,1739807448266,-151.0,0.0001178,2]
[353379564,1739807448277,-151.0,0.0001178,2]
[353379566,1739807448287,-869.93,0.0001178,2]
[353379568,1739807448300,-956.92,0.0001178,2]
[353379570,1739807448311,-500.0,0.0001178,2]
[353379572,1739807448321,-2564.9,0.0001178,2]
[353379574,1739807448331,-463.05,0.0001178,2]
[353379584,1739807448418,-500.0,0.00011862,2]
[353379587,1739807448440,-869.93,0.00011863,2]
[353379589,1739807448452,-956.92,0.00011863,2]
[353379591,1739807448464,-500.0,0.00011863,2]
[353379593,1739807448473,-2564.9,0.00011863,2]
[353379595,1739807448485,-500.0,0.00011944,2]
[353379597,1739807448496,-500.0,0.00011944,2]
[353379599,1739807448507,-500.0,0.00011944,2]
[353379601,1739807448517,-869.93,0.00011945,2]
[353379603,1739807448527,-956.92,0.00011945,2]
[353379605,1739807448537,-500.0,0.00011945,2]
[353379607,1739807448549,-2564.9,0.00011945,2]
[353379609,1739807448560,-869.93,0.00012027,2]
[353379611,1739807448571,-956.92,0.00012027,2]
[353379613,1739807448582,-500.0,0.00012027,2]
[353379615,1739807448592,-2564.9,0.00012027,2]
[353379617,1739807448603,-7438.69753278,0.00012063,2]
[353379619,1739807448614,-185.815689,0.00012063,2]
[353379621,1739807448625,-185.815689,0.00012063,2]
[353379623,1739807448635,-869.93,0.00012109,2]
[353379625,1739807448645,-956.92,0.00012109,2]
[353379627,1739807448655,-500.0,0.00012109,2]
[353379629,1739807448665,-2564.9,0.00012109,2]
[353379631,1739807448676,-869.93,0.00012191,2]
[353379633,1739807448687,-956.92,0.00012191,2]
[353379635,1739807448700,-500.0,0.00012191,2]
[353379637,1739807448711,-2564.9,0.00012191,2]
[353379639,1739807448722,-851.3337179,0.00012247,2]
[353379641,1739807448733,-215.9817002,0.00012247,2]
[353379643,1739807448742,-153.0,0.00012247,2]
[353379645,1739807448753,-154.7106794,0.00012247,2]
[353379647,1739807448762,-153.0,0.00012247,2]
[353379649,1739807448773,-215.9817002,0.00012247,2]
[353379651,1739807448783,-154.7106794,0.00012247,2]
[353379653,1739807448793,-154.7106794,0.00012247,2]
[353379655,1739807448804,-215.8815569,0.00012247,2]
[353379657,1739807448814,-153.0,0.00012247,2]
[353379659,1739807448824,-154.7106794,0.00012247,2]
[353379661,1739807448834,-153.0,0.00012247,2]
[353379663,1739807448845,-153.0,0.00012247,2]
[353379665,1739807448855,-154.7106794,0.00012247,2]
[353379667,1739807448866,-412.1044364,0.00012247,2]
[353379669,1739807448876,-153.0,0.00012247,2]
[353379671,1739807448888,-153.0,0.00012247,2]
[353379673,1739807448898,-153.0,0.00012247,2]
[353379675,1739807448909,-153.0,0.00012247,2]
[353379677,1739807448925,-153.0,0.00012247,2]
[353379679,1739807448937,-151.0,0.00012247,2]
[353379681,1739807448947,-182.32,0.00012248,2]
[353379683,1739807448958,-500.0,0.00012248,2]
[353379685,1739807448968,-151.0,0.00012248,2]
[353379687,1739807448978,-151.0,0.00012248,2]
[353379690,1739807448990,-500.0,0.00012248,2]
[353379692,1739807449000,-151.0,0.00012248,2]
[353379694,1739807449011,-151.0,0.00012248,2]
[353379696,1739807449022,-938.1815753,0.00012249,2]
[353379698,1739807449032,-869.93,0.00012273,2]
[353379700,1739807449044,-956.92,0.00012273,2]
[353379702,1739807449054,-500.0,0.00012273,2]
[353379704,1739807449065,-2564.9,0.00012273,2]
[353379706,1739807449074,-390.915,0.00012306,2]
[353379708,1739807449084,-161.98466513,0.00012306,2]
[353379710,1739807449094,-500.0,0.00012355,2]
[353379712,1739807449105,-869.93,0.00012356,2]
[353379714,1739807449115,-956.92,0.00012356,2]
[353379716,1739807449127,-500.0,0.00012356,2]
[353379718,1739807449138,-2564.9,0.00012356,2]
[353379720,1739807449148,-473.379147,0.00012356,2]
[353379722,1739807449162,-473.379147,0.00012356,2]
[353379723,1739807449172,-500.0,0.00012399,2]
[353379725,1739807449183,-151.0,0.00012399,2]
[353379727,1739807449194,-500.0,0.00012399,2]
[353379729,1739807449204,-613.44,0.00012399,2]
[353379731,1739807449215,-500.0,0.00012399,2]
[353379733,1739807449226,-500.0,0.00012399,2]
[353379735,1739807449236,-500.0,0.00012399,2]
[353379737,1739807449247,-500.0,0.00012399,2]
[353379739,1739807449258,-187.8,0.00012399,2]
[353379741,1739807449268,-3000.0,0.000124,2]
[353379743,1739807449279,-185.815689,0.000124,2]
[353379745,1739807449289,-185.815689,0.000124,2]
[353379747,1739807449301,-3774.35258577,0.000124,2]
[353379749,1739807449311,-869.93,0.00012438,2]
[353379751,1739807449322,-956.92,0.00012438,2]
[353379753,1739807449332,-500.0,0.00012438,2]
[353379755,1739807449342,-2564.9,0.00012438,2]
[353379757,1739807449355,-370.44997693,0.00012498,2]
[353379759,1739807449366,-187.4962309,0.00012498,2]
[353379761,1739807449380,-185.815689,0.00012499,2]
[353379763,1739807449393,-185.815689,0.00012499,2]
[353379765,1739807449405,-294410.95392687,0.000125,5]
[353379768,1739807449421,-44379.72396295,0.000125,5]
[353379775,1739807449487,-500.0,0.00010958,2]
[353379777,1739807449499,-209.35,0.00010958,2]
[353379779,1739807449510,-303401.71387969,0.000125,5]
[353379782,1739807449524,-11322.12823685,0.000125,5]
[353379783,1739807449536,-19745.0,0.000125,5]
[353379784,1739807449554,-16135.18230044,0.000125,5]
[353379785,1739807449567,-6173.84499407,0.000125,5]
[353379786,1739807449579,-572.05986315,0.000125,5]
[353379787,1739807449592,-12300.00000164,0.000125,5]
[353379788,1739807449604,-96332.14999999,0.000125,5]
[353379790,1739807449617,-1000.0,0.000125,5]
[353379799,1739807449700,-500.0,0.00010958,2]
[353379801,1739807449710,-11191.77139906,0.000125,5]
[353379803,1739807449723,-2111.06413068,0.000125,5]
[353379806,1739807449738,-8331.07201909,0.000125,5]
[353380753,1739807459255,151.0165117,0.00010847,2]
[353381878,1739807472065,400.0,0.00010685,2]
[353385155,1739807726384,500.0,0.00016495,60]
[353385161,1739807857507,-286.0,0.0002,120]
[353385162,1739807857534,-455.72364641,0.00020511,120]
[353385163,1739807857558,-154.33877016,0.00020511,120]
[353385164,1739807857587,-204.80058343,0.00022,120]